{"text_format":"1","workbook":"xlsx","n_sheets":4,"sheets":["Sheet1","TG3e","Sheet2","Sheet3"],"not_rendered":{"charts":0,"images":0,"macros":0,"external_links":0,"defined_names":0,"comments":0,"pivot_tables":0},"unopened":[],"bounds":{"document_bytes":16777216,"sheet_cells":100000,"rows_first":2000,"rows_last":500,"rows_between":2000,"halvings":0,"cell_chars":16384,"cell_head_chars":4096},"cells_cut":0,"cells_raw":0,"read":"whole","date_system":"1900"}

{"sheet":"Sheet1","index":0,"n_rows":87,"n_cols":35,"rows_kept":87,"cut":false,"hidden":false,"merged":[[33,24,36,28],[37,6,39,10],[37,12,39,16],[37,24,39,28],[58,20,58,28],[88,20,88,29],[33,12,36,12],[33,13,36,13],[33,14,36,14],[33,15,36,15],[33,16,36,16],[33,18,39,22],[33,3,35,4],[33,6,36,6],[33,7,36,7],[33,8,36,8],[33,9,36,9],[33,10,36,10],[28,26,31,26],[28,27,31,27],[28,28,31,28],[31,3,32,4],[32,6,32,10],[32,12,32,16],[32,18,32,22],[32,24,32,28],[28,19,31,19],[28,20,31,20],[28,21,31,21],[28,22,31,22],[28,24,31,24],[28,25,31,25],[28,12,31,12],[28,13,31,13],[28,14,31,14],[28,15,31,15],[28,16,31,16],[28,18,31,18],[28,3,30,4],[28,6,31,6],[28,7,31,7],[28,8,31,8],[28,9,31,9],[28,10,31,10],[23,27,26,27],[23,28,26,28],[27,3,27,4],[27,6,27,10],[27,12,27,16],[27,18,27,22],[27,24,27,28],[23,20,26,20],[23,21,26,21],[23,22,26,22],[23,24,26,24],[23,25,26,25],[23,26,26,26],[23,13,26,13],[23,14,26,14],[23,15,26,15],[23,16,26,16],[23,18,26,18],[23,19,26,19],[23,6,26,6],[23,7,26,7],[23,8,26,8],[23,9,26,9],[23,10,26,10],[23,12,26,12],[17,25,20,25],[17,26,20,26],[17,27,20,27],[17,28,20,28],[19,18,20,22],[21,6,22,10],[21,12,22,16],[21,18,22,22],[21,24,22,28],[17,13,20,13],[17,14,20,14],[17,15,20,15],[17,16,20,16],[17,18,18,22],[17,24,20,24],[17,6,20,6],[17,7,20,7],[17,8,20,8],[17,9,20,9],[17,10,20,10],[17,12,20,12],[12,28,15,28],[14,6,14,10],[15,6,15,10],[16,6,16,10],[16,12,16,16],[16,18,16,22],[16,24,16,28],[12,21,15,21],[12,22,15,22],[12,24,15,24],[12,25,15,25],[12,26,15,26],[12,27,15,27],[10,18,11,22],[12,6,13,10],[12,12,15,12],[12,13,15,13],[12,14,15,14],[12,15,15,15],[12,16,15,16],[12,18,15,18],[12,19,15,19],[12,20,15,20],[6,30,6,32],[7,3,7,4],[7,6,7,10],[7,12,7,16],[7,18,7,22],[7,24,7,28],[7,30,7,32],[1,1,4,1],[6,3,6,4],[6,6,6,10],[6,12,6,16],[6,18,6,22],[6,24,6,28]]}
[]
[null,"R3",null,"96th IEEE 802.15 WPAN MEETING"]
[null,null,null,"Hyatt Regency Vancouver"]
[null,null,null,"Vancouver, B.C., Canada"]
[null,null,null,"The graphic below describes the weekly session of the IEEE P802.15 WG in graphic format.",null,null,null,null,null,null,null,null,null,null,null,null,null,null,null,null,null,null,null,null,null,null,null,null,null,null,"  "]
[null,null,null,null,null,null,null,null,null,null,null,null,null,null,null,null,null,null,null,null,null,null,null,null,null,null,null,null,null,null,null,null,null,null,"USA"]
[null," ",null,"SUNDAY",null,null,"MONDAY",null,null,null,null,null,"TUESDAY",null,null,null,null,null,"WEDNESDAY",null,null,null,null,null,"THURSDAY",null,null,null,null,null,"FRIDAY"]
[null,null,null,{"$f":"DATE(2015,5,10)","v":"2015-05-10"},null,null,{"$f":"D8+1","v":"2015-05-11"},null,null,null,null,null,{"$f":"G8+1","v":"2015-05-12"},null,null,null,null,null,{"$f":"M8+1","v":"2015-05-13"},null,null,null,null,null,{"$f":"S8+1","v":"2015-05-14"},null,null,null,null,null,{"$f":"Y8+1","v":"2015-05-15"}]
[]
[null,null,null,null,"802.15 Room",null,"802.15 Room 1","802.15 Room 2","802.15 Room 3","802.15 Room 4","Room",null,"802.15 Room 1","802.15 Room 2","802.15 Room 3","802.15 Room 4","Room",null,"802.15 Room 1","802.15 Room 2","802.15 Room 3","802.15 Room 4","Room",null,"802.15 Room 1","802.15 Room 2","802.15 Room 3","802.15 Room 4"]
[null,"07:00-07:30",null,null,null,null,null,null,null,null,null,null,null,null,null,null,null,null,"802.15 AC MEETING-RM4",null,null,null,null,null,"  "]
[null,"07:30-08:00"]
[null,"08:00-08:30",null,null,null,null,"JOINT OPENING PLENARY",null,null,null,null,null,"SC-M","TG10\nL2R","TG4n\nCMB","IG DEP","TG7R1 OCC",null,"SC-M","TG8 PAC ","TG4n\nCMB","TG10\nL2R","TG9 KMP",null,"SC-M","TG8 PAC ","TG9 KMP","TG7R1 OCC"]
[null,"08:30-09:00"]
[null,"09:00-09:30",null,null,null,null,"Break"]
[null,"09:30-10:00",null,null,null,null,"802.15 WG Opening-RM1"]
[null,"10:00-10:30",null,null,null,null,"Break",null,null,null,null,null,"Break",null,null,null,null,null,"Break",null,null,null,null,null,"Break"]
[null,"10:30-11:00",null,null,null,null,"TG7R1 OCC","TG4r DMT","TG10\nL2R","TG3e HRCP","TG9 KMP",null,"TG3d 100G","TG8 PAC ","TG4n\nCMB","TG4r DMT","TG7R1 OCC",null,"802.15 WG Midweek-ROOM 1",null,null,null,null,null,"SC-M","TG8 PAC ","TG4q ULP","TG7R1 OCC"]
[null,"11:00-11:30"]
[null,"11:30-12:00",null,null,null,null,null,null,null,null,null,null,null,null,null,null,null,null,"WNG  ROOM 1"]
[null,"12:00-12:30"]
[null,"12:30-13:00",null,null,null,null,"Lunch",null,null,null,null,null,"Lunch",null,null,null,null,null,"Lunch",null,null,null,null,null,"Lunch"]
[null,"13:00-13:30"]
[null,"13:30-14:00",null,null,null,null,"TG7R1 OCC","TG8 PAC ","IG 6T","TG3e HRCP","TG9 KMP",null,"SC-M","TG8 PAC ","Joint \n15/16 IG HRRC ","TG3e HRCP","TG4q ULP",null,"SC-M","TG8 PAC ","TG3e HRCP","TG7R1 OCC","TG4q ULP",null,"SC-M","TG8 PAC ","TG4r DMT","TG3e HRCP"]
[null,"14:00-14:30"]
[null,"14:30-15:00"]
[null,"15:00-15:30"]
[null,"15:30-16:00",null,"Break",null,null,"Break",null,null,null,null,null,"Break",null,null,null,null,null,"Break",null,null,null,null,null,"Break"]
[null,"16:00-16:30",null,"WIRELESS CHAIRS MEETING",null,null,"SC-M","TG8 PAC ","TG4s SRU","IG DEP","TG4n\nCMB",null,"TG3d 100G","TG8 PAC ","TG4s SRU","TG10\nL2R","TG4q ULP",null,"TG3d 100G","TG10\nL2R","TG4r DMT","TG7R1 OCC","TG4q ULP",null,"TG3d 100G","TG10\nL2R","TG4s SRU","Open"]
[null,"16:30-17:00"]
[null,"17:00-17:30"]
[null,"17:30-18:00",null,"802.15 AC MEETING"]
[null,"18:00-18:30",null,null,null,null,"Break",null,null,null,null,null,"Break",null,null,null,null,null,"Break",null,null,null,null,null,"Break"]
[null,"18:30-19:00",null,"Dinner on your own",null,null,"Open","Open","Open","Open",null,null,"Open","Open","Open","Open",null,null,"Social\n",null,null,null,null,null,"802.15 WG CLOSING\nROOM 1"]
[null,"19:00-19:30"]
[null,"19:30-20:00"]
[null,"20:00-20:30"]
[null,"20:30-21:00",null,null,null,null,"Dinner on your own",null,null,null,null,null,"Dinner on your own",null,null,null,null,null,null,null,null,null,null,null,"Dinner on your own"]
[null,"21:00-21:30"]
[null,"21:30-22:00"]
[null,"22:00-22:30"]
[]
[null,"LEGEND"]
[]
[null,null,null,null,"WNG",null,"802.15Wireless Next Generation Standing Committee",null,null,null,null,null,null,null,null,null,null,null,null,null,null,"EC","802  EXECUTIVE COMMITTEE"]
[null,null,null,null,"SC-M",null,"Standing Committee on Maintenance",null,null,null,null,null,null,null,null,null,null,null,null,null,null,"AC","802.15 ADVISORY COMMITTEE"]
[null,null,null,null,"TG3d 100G",null,"Task Group-100G 15.3 PHY layer",null,null,null,null,null,null,null,null,null,null,null,null,null,null,"P&P","Standing Committee on WG Rules"]
[null,null,null,null,"TG4n CMB",null,"Task Group 15.4n for China Medical Band",null,null,null,null,null,null,null,null,null,null,null,null,null,null,"TG3e HRCP","Task Group  High Rate Close Proximity"]
[null,null,null,null,"TG4q ULP",null,"Task Group Ultra Low Power 15.4"]
[null,null,null,null,"TG4r DMT",null,"Task Group-15.4 Distance Measurement Techniques"]
[null,null,null,null,"TG4s SRU",null,"Task Group-15.4s Spectrum Resource Utilization",null,null,null,null,null,null,null,null,null,null,null,null,null,null,"IG HRRC(Jt w/802.16)","INTEREST GROUP- HIGH RATE RAIL COMMUICATIONS"]
[null,null,null,null,"TG7R1 OWC",null,"Task Group-15.7Revison1-Optical Wireless Communications",null,null,null,null,null,null,null,null,null,null,null,null,null,null,"IG THZ","Interest Group-Terahertz"]
[null,null,null,null,"TG8 PAC",null,"Task Group 15.8 on Peer Aware Communication",null,null,null,null,null,null,null,null,null,null,null,null,null,null,"IG DEP","INTEREST GROUP ON ENHANCED DEPENDABILITY"]
[null,null,null,null,"TG9 KMP",null,"Task Group 15.9  -KEY MANAGEMENT PROTOCOL Interest Group",null,null,null,null,null,null,null,null,null,null,null,null,null,null,"IG 6Tisch","Interest Group-IETF Liaison"]
[null,null,null,null,"TG10 L2R",null,"Task Group 15.10 -LAYER 2 ROUTING"]
[]
[]
[]
[null,"HOURS PER 802.15 GROUP STATISTICS",null,null,null,null,null,null,null,null,null,null,null,null,null,null,null,null,null,null,"ROOM SETUPS"]
[]
[null,null,{"$f":"H88/H86","v":{"$error":"#DIV/0!"}},null,null,null,null,"Slots",null,null,null,null,null,null,null,null,null,null,"SIZE",null,"LAYOUT",null,null,null,"T MIC","F MIC","PROJ"]
[null,null,null,null,null,null,"Advisory Committee",1]
[null,null,null,null,null,null,"Working Group/Joint MTGs",2.5,null,null,null,null,null,null,null,null,"ROOM 1",null,100,null,"CR",null,null,null,1,1,1]
[null,null,null,null,null,null,"Wireless Chairs",0,null,null,null,null,null,null,null,null,"ROOM 2",null,40,null,"CR",null,null,null,1,"-",1]
[null,null,null,null,null,null,"802.15 WNG",0.5,null,null,null,null,null,null,null,null,"ROOM 3",null,30,null,"CR",null,null,null,1,null,1]
[null,null,null,null,null,null,"TG3d-100G",4,null,null,null,null,null,null,null,null,"ROOM 4",null,20,null,"BR",null,null,null,"-","-",1]
[null,null,null,null,null,null,"TG3e-HRCP",5]
[null,null,null,null,null,null,"TG4n CMB",4]
[null,null,null,null,null,null,"TG4q ULP",5]
[null,null,null,null,null,null,"TG4r DMT",4]
[null,null,null,null,null,null,"TG4s SRU",3]
[null,null,null,null,null,null,"TG7R1 OWC",8]
[null,null,null,null,null,null,"TG8 PAC",10]
[null,null,null,null,null,null,"TG9 KMP",4]
[null,null,null,null,null,null,"TG10 L2R",6]
[]
[null,null,null,null,null,null,"SC-M",8]
[null,null,null,null,null,null,"Tech Editors",0]
[null,null,null,null,null,null,"IG THZ",0]
[null,null,null,null,null,null,"IG -DEP",2]
[null,null,null,null,null,null,"IG 6T",1]
[null,null,null,null,null,null,"IG HRRC",1]
[null,null,null,null,null,null,"Total TG/SG/IG only:  ",{"$f":"SUM(H66:H82)","v":65}]
[null,null,null,null,null,null,"Optional Meeting Time Available ",8]
[null,null,null,null,null,null,null,null,null,null,null,null,null,null,null,null,null,null,"Room Size",null,"R SIZE",null,null,null,"Floor Mic"]
[null,null,null,null,null,null,"Min Time Required for Attendance Credit",null,null,null,null,null,null,null,null,null,null,null,"Room Type",null,"R TYPE",null,null,null,"Projector"]
[null,null,null,null,null,null,null,null,null,null,null,null,null,null,null,null,null,null,"Table Mic",null,"T MIC",null,null,null,"Raised Head Table"]

{"sheet":"TG3e","index":1,"n_rows":67,"n_cols":5,"rows_kept":67,"cut":false,"hidden":false,"merged":[]}
["96th IEEE 802.15 WPAN MEETING"]
["Hyatt Regency Vancouver"]
["Vancouver, B.C., Canada"]
[]
[]
[null,"Session Objectives"]
[null,"Affirm actions of the Study Group"]
[null,"Confirm TG chair"]
[null,"Appoint and confirm TG vice-chair, secretary, and technical editor."]
[null,"Approve the TGD"]
[null,"Approve the CMD"]
[null,"Issue a Call for Proposals"]
[]
[]
["Task Group 3e HRCP, Monday AM2, May 11 , 2015, Room Oxford"]
[1.1000000000000001,"MEETING CALLED TO ORDER","A. Estrada",0,"10:30:00"]
[1.2,"Welcome / patent policy","A. Estrada",2,{"$f":"E16+TIME(0,D17,G2)","v":"10:32:00"}]
[1.3,"Meeting Objectives and Minutes Approval  (15/0201r0)","A. Estrada",6,{"$f":"E17+TIME(0,D18,0)","v":"10:38:00"}]
[1.4,"Call for Contributions and Agenda Approval (15/0299r0) ","A. Estrada",4,"10:42:00"]
[1.5,"Affirm actions of the Study Group","A. Estrada",4,"10:46:00"]
[1.6,"Confirm TG chair","A. Estrada",4,"10:50:00"]
[1.7,"Appoint and confirm TG vice-chair, secretary, and technical editor.","A. Estrada",10,"11:00:00"]
[1.8,"Contribution: Project timeline review","A. Estrada",10,"11:10:00"]
[1.9,"Contribution: TGD","K. Togashi",89,{"$f":"E22+TIME(0,D24,0)","v":"12:29:00"}]
["1.10","Recess","A. Estrada",1,{"$f":"E24+TIME(0,D25,0)","v":"12:30:00"}]
[]
[]
[]
["Task Group 3e HRCP, Monday PM1, May 11, 2015, Room TBD"]
[2.1,"MEETING CALLED TO ORDER","A. Estrada",0,"13:30:00"]
[2.2000000000000002,"Welcome / patent policy","A. Estrada",1,{"$f":"E30+TIME(0,D31,G24)","v":"13:31:00"}]
[2.2999999999999998,"Contribution: CMD","K. Hiraga",118,{"$f":"E31+TIME(0,D32,G25)","v":"15:29:00"}]
[2.6,"Recess","A. Estrada",1,{"$f":"E32+TIME(0,D33,G26)","v":"15:30:00"}]
[]
[]
[]
[]
[]
["Task Group 3e HRCP, Tuesday PM1, May 12, 2015, Room Dover"]
[3.1,"MEETING CALLED TO ORDER","A. Estrada",0,"13:30:00"]
[3.2,"Welcome / patent policy","A. Estrada",1,{"$f":"E40+TIME(0,D41,G35)","v":"13:31:00"}]
[3.3,"Contribution: CfP","I. Maekawa",118,{"$f":"E41+TIME(0,D42,G36)","v":"15:29:00"}]
[3.5,"Recess","A. Estrada",1,{"$f":"E42+TIME(0,D43,G37)","v":"15:30:00"}]
[]
[]
[]
[]
[]
[]
["Task Group 3e HRCP, Wednesday PM1, May 13, 2015, Room Plaza Ballroom C"]
[4.0999999999999996,"MEETING CALLED TO ORDER","A. Estrada",0,"13:30:00"]
[4.2,"Welcome / patent policy","A. Estrada",1,{"$f":"E51+TIME(0,D52,G46)","v":"13:31:00"}]
[4.3,"Motion to Approve TGD","A. Estrada",39,{"$f":"E52+TIME(0,D53,G47)","v":"14:10:00"}]
[4.4000000000000004,"Motion to Approve CMD","A. Estrada",39,"14:49:00"]
[4.5,"Motion to Approve CfP","A. Estrada",40,"15:29:00"]
[4.5,"Recess","A. Estrada",1,"15:30:00"]
[]
[]
[]
[]
[]
[]
["Task Group 3e HRCP, Wednesday PM1, May 14, 2015, Room Oxford"]
[5.0999999999999996,"MEETING CALLED TO ORDER","A. Estrada",0,"13:30:00"]
[5.2,"Welcome / patent policy","A. Estrada",1,{"$f":"E64+TIME(0,D65,G59)","v":"13:31:00"}]
[5.3,"AoB","A. Estrada",118,{"$f":"E65+TIME(0,D66,G60)","v":"15:29:00"}]
[5.5,"Recess","A. Estrada",1,{"$f":"E66+TIME(0,D67,G61)","v":"15:30:00"}]

{"sheet":"Sheet2","index":2,"n_rows":0,"n_cols":0,"rows_kept":0,"cut":false,"hidden":false,"merged":[]}

{"sheet":"Sheet3","index":3,"n_rows":0,"n_cols":0,"rows_kept":0,"cut":false,"hidden":false,"merged":[]}